fUSD/lending_fUSD_20250206
["ID","MTS","AMOUNT","RATE_DAILY","PERIOD"]
[351997641,1738872640146,-500.0,0.00016847,2]
[351997643,1738872640157,-500.0,0.00016847,2]
[351997646,1738872640167,-500.0,0.00016847,2]
[351997648,1738872640179,-500.0,0.00016847,2]
[351997650,1738872640190,-500.0,0.00016847,2]
[351997652,1738872640202,-500.0,0.00016847,2]
[351997654,1738872640213,-500.0,0.00016847,2]
[351997656,1738872640224,-500.0,0.00016847,2]
[351997658,1738872640236,-500.0,0.00016847,2]
[351997660,1738872640248,-500.0,0.00016847,2]
[351997662,1738872640259,-661.08,0.00016847,2]
[351997664,1738872640270,-667.95,0.00016847,2]
[351997666,1738872640281,-500.0,0.00016847,2]
[351997668,1738872640292,-512.52,0.00016847,2]
[351997671,1738872640303,-500.0,0.00016847,2]
[351997673,1738872640313,-500.0,0.00016847,2]
[351997675,1738872640323,-737.84,0.00016847,2]
[351997677,1738872640333,-692.71,0.00016847,2]
[351997679,1738872640343,-500.0,0.00016847,2]
[351997681,1738872640354,-500.0,0.00016847,2]
[351997683,1738872640365,-1170.13,0.00016847,2]
[351997685,1738872640376,-500.0,0.00016847,2]
[351997687,1738872640387,-500.0,0.00016847,2]
[351997689,1738872640397,-500.0,0.00016847,2]
[351997691,1738872640408,-500.0,0.00016847,2]
[351997694,1738872640419,-500.0,0.00016847,2]
[351997696,1738872640430,-564.23,0.00016847,2]
[351997698,1738872640441,-500.0,0.00016847,2]
[351997700,1738872640451,-500.0,0.00016847,2]
[351997702,1738872640462,-1070.06,0.00016847,2]
[351997704,1738872640473,-500.68,0.00016847,2]
[351997706,1738872640483,-500.0,0.00016847,2]
[351997708,1738872640494,-500.0,0.00016847,2]
[351997710,1738872640504,-637.76,0.00016847,2]
[351997712,1738872640515,-908.71,0.00016847,2]
[351997714,1738872640524,-500.0,0.00016847,2]
[351997716,1738872640534,-645.07,0.00016847,2]
[351997718,1738872640545,-500.0,0.00016847,2]
[351997720,1738872640557,-687.04,0.00016847,2]
[351997723,1738872640570,-500.0,0.00016847,2]
[351997725,1738872640581,-500.0,0.00016847,2]
[351997727,1738872640591,-500.0,0.00016847,2]
[351997729,1738872640602,-413.48636676,0.00016847,2]
[351997731,1738872640612,-730.8,0.00016847,2]
[351997733,1738872640622,-2214.78,0.00016847,2]
[351997735,1738872640633,-968.2,0.00016847,2]
[351997737,1738872640644,-500.0,0.00016847,2]
[351997739,1738872640654,-500.0,0.00016847,2]
[351997741,1738872640665,-500.0,0.00016847,2]
[351997743,1738872640675,-500.0,0.00016847,2]
[351997746,1738872640686,-1000.86,0.00016847,2]
[351997748,1738872640697,-500.0,0.00016847,2]
[351997750,1738872640709,-708.52,0.00016847,2]
[351997752,1738872640719,-866.43,0.00016847,2]
[351997754,1738872640731,-564.99,0.00016847,2]
[351997756,1738872640742,-500.0,0.00016847,2]
[351997759,1738872640752,-500.0,0.00016847,2]
[351997761,1738872640763,-612.8,0.00016847,2]
[351997763,1738872640774,-500.0,0.00016847,2]
[351997765,1738872640784,-711.53,0.00016847,2]
[351997767,1738872640795,-583.55,0.00016847,2]
[351997769,1738872640805,-564.86,0.00016847,2]
[351997771,1738872640815,-1003.88,0.00016847,2]
[351997773,1738872640826,-500.0,0.00016847,2]
[351997809,1738872641141,-500.0,0.00016847,2]
[351997811,1738872641156,-500.0,0.00016847,2]
[351997812,1738872641166,-500.0,0.00016847,2]
[351997813,1738872641175,-500.0,0.00016847,2]
[351997814,1738872641184,-528.93,0.00016847,2]
[351997815,1738872641193,-720.36,0.00016847,2]
[351997816,1738872641202,-597.38,0.00016847,2]
[351997817,1738872641211,-500.0,0.00016847,2]
[351997818,1738872641220,-975.78,0.00016847,2]
[351997819,1738872641230,-500.0,0.00016847,2]
[351997820,1738872641239,-899.48,0.00016847,2]
[351997821,1738872641248,-786.17,0.00016847,2]
[351997822,1738872641256,-500.0,0.00016847,2]
[351997823,1738872641266,-500.0,0.00016847,2]
[351997824,1738872641275,-746.79,0.00016847,2]
[351997825,1738872641284,-602.14,0.00016847,2]
[351997826,1738872641294,-580.63,0.00016847,2]
[351997827,1738872641304,-500.0,0.00016847,2]
[351997828,1738872641315,-500.0,0.00016847,2]
[351997829,1738872641324,-500.0,0.00016847,2]
[351997831,1738872641334,-998.52,0.00016847,2]
[351997833,1738872641344,-516.22025069,0.00016847,2]
[351997857,1738872641577,-55.64974931,0.00016847,2]
[351997859,1738872641587,-310.47969749,0.00016847,2]
[351997861,1738872641599,-189.52030251,0.00016847,2]
[351997863,1738872641608,-1196.2,0.00016847,2]
[351997865,1738872641617,-500.0,0.00016847,2]
[351997867,1738872641627,-961.06,0.00016847,2]
[351997869,1738872641637,-502.92,0.00016847,2]
[351997871,1738872641646,-500.0,0.00016847,2]
[351997873,1738872641655,-500.0,0.00016847,2]
[351997875,1738872641664,-744.02,0.00016847,2]
[351997877,1738872641673,-500.0,0.00016847,2]
[351997879,1738872641683,-500.0,0.00016847,2]
[351997881,1738872641693,-79.66969749,0.00016847,2]
[351997883,1738872641705,-340.97585375,0.00016847,2]
[351997936,1738872642208,-844.71,0.00016573,2]
[351997938,1738872642217,-161.10471139,0.00016573,2]
[351997940,1738872642227,-500.0,0.00016573,2]
[351997943,1738872642237,-844.71,0.0001671,2]
[351997945,1738872642248,-91.90444876,0.00016847,2]
[351997946,1738872642258,-166.05583985,0.00016847,2]
[351997949,1738872642269,-428.89416015,0.00016847,2]
[351997951,1738872642280,-873.48,0.00016847,2]
[351997953,1738872642289,-55.29612295,0.00016847,2]
[351997955,1738872642301,-542.98330789,0.00016847,2]
[351997957,1738872642310,-500.0,0.00016847,2]
[351997959,1738872642319,-1529.26,0.00016847,2]
[351997961,1738872642328,-416.85606011,0.00016847,2]
[351997965,1738872642356,-427.71197663,0.0001671,2]
[351997967,1738872642365,-3.24163065,0.00016832,2]
[351997969,1738872642376,-419.30006202,0.00016832,2]
[351997971,1738872642385,-83.14393989,0.00016847,2]
[351997973,1738872642393,-500.0,0.00016847,2]
[351997975,1738872642403,-844.71,0.00016847,2]
[351997977,1738872642412,-585.451,0.00016852,2]
[351997979,1738872642421,-208.53152476,0.00016869,2]
[351997981,1738872642430,-700.0,0.000169,6]
[351997983,1738872642439,-6105.49237918,0.00016948,2]
[351997985,1738872642448,-4276.27304997,0.00016949,2]
[351997987,1738872642458,-544.81799768,0.0001696,2]
[351997989,1738872642481,-500.0,0.00016983,2]
[351997991,1738872642490,-500.0,0.00016983,2]
[351997993,1738872642499,-500.0,0.00016983,2]
[351997995,1738872642508,-500.0,0.00016983,2]
[351997997,1738872642520,-500.0,0.00016983,2]
[351997999,1738872642529,-500.0,0.00016983,2]
[351998001,1738872642539,-458.66221037,0.00016983,2]
[351998003,1738872642548,-500.0,0.00016983,2]
[351998005,1738872642558,-500.0,0.00016983,2]
[351998007,1738872642567,-500.0,0.00016983,2]
[351998009,1738872642576,-500.0,0.00016983,2]
[351998011,1738872642585,-500.0,0.00016983,2]
[351998013,1738872642596,-500.0,0.00016983,2]
[351998015,1738872642605,-500.0,0.00016983,2]
[351998017,1738872642614,-500.0,0.00016983,2]
[351998019,1738872642623,-500.0,0.00016983,2]
[351998021,1738872642636,-500.0,0.00016983,2]
[351998023,1738872642645,-500.0,0.00016983,2]
[351998025,1738872642654,-500.0,0.00016983,2]
[351998027,1738872642664,-403.2289009,0.00016983,2]
[351998029,1738872642673,-500.0,0.00016983,2]
[351998031,1738872642682,-515.32,0.00016983,2]
[351998033,1738872642692,-1727.37,0.00016983,2]
[351998035,1738872642701,-806.74,0.00016983,2]
[351998037,1738872642711,-2103.49,0.00016983,2]
[351998039,1738872642720,-500.0,0.00016983,2]
[351998041,1738872642729,-505.78,0.00016983,2]
[351998043,1738872642739,-500.0,0.00016983,2]
[351998045,1738872642748,-500.0,0.00016983,2]
[351998047,1738872642757,-500.0,0.00016983,2]
[351998049,1738872642767,-682.2,0.00016983,2]
[351998051,1738872642776,-500.0,0.00016983,2]
[351998053,1738872642785,-500.0,0.00016983,2]
[351998055,1738872642794,-779.67,0.00016983,2]
[351998057,1738872642803,-415.56714405,0.00016983,2]
[351998059,1738872642812,-500.0,0.00016983,2]
[351998061,1738872642822,-500.0,0.00016983,2]
[351998063,1738872642831,-509.33,0.00016983,2]
[351998065,1738872642840,-631.23,0.00016983,2]
[351998067,1738872642849,-655.87,0.00016983,2]
[351998069,1738872642858,-500.0,0.00016983,2]
[351998071,1738872642867,-701.51,0.00016983,2]
[351998073,1738872642877,-449.68974764,0.00016983,2]
[351998075,1738872642889,-50.31025236,0.00016983,2]
[351998077,1738872642898,-624.23,0.00016983,2]
[351998079,1738872642907,-558.98,0.00016983,2]
[351998081,1738872642917,-500.0,0.00016983,2]
[351998083,1738872642926,-500.0,0.00016983,2]
[351998085,1738872642935,-1184.06,0.00016983,2]
[351998087,1738872642945,-606.4,0.00016983,2]
[351998089,1738872642955,-206.67974764,0.00016983,2]
[351998094,1738872642988,-965.18025236,0.00016983,2]
[351998096,1738872642998,-500.0,0.00016983,2]
[351998098,1738872643007,-500.0,0.00016983,2]
[351998100,1738872643016,-938.96,0.00016983,2]
[351998102,1738872643026,-1474.66,0.00016983,2]
[351998104,1738872643035,-573.14,0.00016983,2]
[351998106,1738872643044,-500.0,0.00016983,2]
[351998108,1738872643054,-500.0,0.00016983,2]
[351998110,1738872643063,-934.05,0.00016983,2]
[351998112,1738872643073,-984.63,0.00016983,2]
[351998114,1738872643083,-404.17697157,0.00016983,2]
[351998116,1738872643092,-482.9860934,0.00016983,2]
[351998119,1738872643101,-500.0,0.00016983,2]
[351998122,1738872643111,-500.0,0.00016983,2]
[351998125,1738872643120,-500.0,0.00016983,2]
[351998129,1738872643129,-500.0,0.00016983,2]
[351998132,1738872643139,-500.0,0.00016983,2]
[351998134,1738872643148,-358.42210388,0.00016983,2]
[351998136,1738872643158,-500.0,0.00016983,2]
[351998138,1738872643167,-566.98578377,0.00016983,2]
[351998140,1738872643177,-500.0,0.00016984,2]
[351998143,1738872643187,-500.0,0.00016984,2]
[351998145,1738872643196,-500.0,0.00016984,2]
[351998146,1738872643206,-500.0,0.00016984,2]
[351998148,1738872643232,-500.0,0.00016984,2]
[351998151,1738872643241,-513.01,0.00016984,2]
[351998153,1738872643251,-500.0,0.00016984,2]
[351998154,1738872643260,-500.0,0.00016984,2]
[351998156,1738872643269,-500.0,0.00016984,2]
[351998158,1738872643278,-500.0,0.00016984,2]
[351998160,1738872643288,-500.0,0.00016984,2]
[351998162,1738872643297,-500.0,0.00016984,2]
[351998165,1738872643307,-222.35818288,0.00016984,2]
[351998168,1738872643319,-277.64181712,0.00016984,2]
[351998170,1738872643328,-500.0,0.00016984,2]
[351998171,1738872643337,-467.08157483,0.00016984,2]
[351998174,1738872643349,-32.91842517,0.00016984,2]
[351998176,1738872643358,-767.44,0.00016984,2]
[351998178,1738872643367,-500.0,0.00016984,2]
[351998180,1738872643376,-500.0,0.00016984,2]
[351998182,1738872643385,-500.0,0.00016984,2]
[351998184,1738872643395,-106.44157483,0.00016984,2]
[351998186,1738872643406,-393.55842517,0.00016984,2]
[351998188,1738872643415,-500.0,0.00016984,2]
[351998190,1738872643424,-500.0,0.00016984,2]
[351998192,1738872643433,-500.0,0.00016984,2]
[351998194,1738872643443,-501.6,0.00016984,2]
[351998196,1738872643452,-500.0,0.00016984,2]
[351998198,1738872643462,-520.81046225,0.00016984,2]
[351998199,1738872643471,-500.0,0.00016984,2]
[351998201,1738872643481,-500.0,0.00016984,2]
[351998203,1738872643490,-500.0,0.00016984,2]
[351998206,1738872643500,-500.0,0.00016984,2]
[351998208,1738872643510,-500.0,0.00016984,2]
[351998209,1738872643519,-500.0,0.00016984,2]
[351998212,1738872643530,-500.0,0.00016984,2]
[351998214,1738872643539,-500.0,0.00016984,2]
[351998216,1738872643549,-452.9485325,0.00016984,2]
[351998218,1738872643562,-500.0,0.00016984,2]
[351998220,1738872643570,-500.0,0.00016984,2]
[351998222,1738872643580,-500.0,0.00016984,2]
[351998224,1738872643589,-500.0,0.00016984,2]
[351998226,1738872643599,-500.0,0.00016984,2]
[351998228,1738872643608,-500.0,0.00016984,2]
[351998230,1738872643617,-500.0,0.00016984,2]
[351998232,1738872643627,-500.0,0.00016984,2]
[351998234,1738872643636,-667.95,0.00016984,2]
[351998236,1738872643646,-500.0,0.00016984,2]
[351998238,1738872643655,-512.52,0.00016984,2]
[351998239,1738872643664,-500.0,0.00016984,2]
[351998242,1738872643674,-500.0,0.00016984,2]
[351998244,1738872643685,-737.84,0.00016984,2]
[351998245,1738872643695,-692.71,0.00016984,2]
[351998248,1738872643705,-500.0,0.00016984,2]
[351998250,1738872643719,-500.0,0.00016984,2]
[351998252,1738872643728,-1170.13,0.00016984,2]
[351998254,1738872643738,-500.0,0.00016984,2]
[351998256,1738872643750,-500.0,0.00016984,2]
[351998258,1738872643759,-500.0,0.00016984,2]
[351998260,1738872643769,-500.0,0.00016984,2]
[351998261,1738872643778,-500.0,0.00016984,2]
[351998264,1738872643789,-564.23,0.00016984,2]
[351998266,1738872643799,-500.0,0.00016984,2]
[351998267,1738872643808,-500.0,0.00016984,2]
[351998269,1738872643818,-1070.06,0.00016984,2]
[351998271,1738872643828,-500.68,0.00016984,2]
[351998273,1738872643837,-500.0,0.00016984,2]
[351998275,1738872643847,-431.27637874,0.00016984,2]
[351998278,1738872643859,-68.72362126,0.00016984,2]
[351998280,1738872643868,-637.76,0.00016984,2]
[351998282,1738872643877,-360.91513273,0.00016984,2]
[351998284,1738872643888,-387.72733961,0.00016984,2]
[351998286,1738872643900,-160.06752766,0.00016984,2]
[351998288,1738872643909,-500.0,0.00016984,2]
[351998290,1738872643919,-645.07,0.00016984,2]
[351998293,1738872643928,-472.07814727,0.00016984,2]
[351998296,1738872643938,-687.04,0.00016984,2]
[351998300,1738872643948,-500.0,0.00016984,2]
[351998303,1738872643957,-500.0,0.00016984,2]
[351998306,1738872643968,-500.0,0.00016984,2]
[351998308,1738872643977,-730.8,0.00016984,2]
[351998310,1738872643987,-1198.03828732,0.00016984,2]
[351998312,1738872643998,-1016.74171268,0.00016984,2]
[351998314,1738872644008,-968.2,0.00016984,2]
[351998316,1738872644018,-500.0,0.00016984,2]
[351998318,1738872644027,-500.0,0.00016984,2]
[351998320,1738872644038,-500.0,0.00016984,2]
[351998322,1738872644047,-500.0,0.00016984,2]
[351998324,1738872644057,-1000.86,0.00016984,2]
[351998344,1738872644066,-500.0,0.00016984,2]
[351998347,1738872644252,-46.76865394,0.00016984,2]
[351998381,1738872644571,-500.0,0.00016573,2]
[351998383,1738872644581,-500.0,0.0001671,2]
[351998385,1738872644591,-500.0,0.00016847,2]
[351998387,1738872644600,-152.5,0.00016984,2]
[351998389,1738872644611,-509.25134606,0.00016984,2]
[351998391,1738872644621,-253.90680006,0.00016984,2]
[351998403,1738872644722,-612.52319994,0.00016984,2]
[351998405,1738872644732,-564.99,0.00016984,2]
[351998407,1738872644741,-500.0,0.00016984,2]
[351998409,1738872644752,-500.0,0.00016984,2]
[351998411,1738872644762,-612.8,0.00016984,2]
[351998413,1738872644772,-500.0,0.00016984,2]
[351998415,1738872644781,-558.88680006,0.00016984,2]
[351998417,1738872644793,-152.64319994,0.00016984,2]
[351998419,1738872644803,-583.55,0.00016984,2]
[351998421,1738872644813,-162.90972205,0.00016984,2]
[351998423,1738872644825,-401.95027795,0.00016984,2]
[351998425,1738872644834,-1003.88,0.00016984,2]
[351998427,1738872644843,-500.0,0.00016984,2]
[351998430,1738872644853,-274.60939313,0.00016984,2]
[351998432,1738872644862,-500.0,0.00016984,2]
[351998433,1738872644872,-339.56032892,0.00016984,2]
[351998561,1738872646247,-556.62,0.00016572,2]
[351998563,1738872646257,-500.0,0.00016573,2]
[351998565,1738872646266,-500.0,0.0001671,2]
[351998567,1738872646275,-500.0,0.00016847,2]
[351998569,1738872646285,-160.43967108,0.00016984,2]
[351998571,1738872646294,-500.0,0.00016984,2]
[351998573,1738872646303,-528.93,0.00016984,2]
[351998575,1738872646313,-720.36,0.00016984,2]
[351998577,1738872646323,-597.38,0.00016984,2]
[351998579,1738872646332,-500.0,0.00016984,2]
[351998581,1738872646342,-975.78,0.00016984,2]
[351998583,1738872646351,-395.02306614,0.00016984,2]
[351998585,1738872646363,-104.97693386,0.00016984,2]
[351998587,1738872646372,-665.88214613,0.00016984,2]
[351998591,1738872646398,-500.0,0.00016573,2]
[351998593,1738872646408,-288.70939353,0.00016709,2]
[351998595,1738872646427,-267.91060647,0.00016709,2]
[351998597,1738872646437,-233.59785387,0.00016984,2]
[351998599,1738872646446,-786.17,0.00016984,2]
[351998601,1738872646456,-500.0,0.00016984,2]
[351998603,1738872646467,-500.0,0.00016984,2]
[351998605,1738872646480,-746.79,0.00016984,2]
[351998607,1738872646490,-602.14,0.00016984,2]
[351998609,1738872646501,-580.63,0.00016984,2]
[351998611,1738872646511,-500.0,0.00016984,2]
[351998613,1738872646521,-500.0,0.00016984,2]
[351998615,1738872646531,-998.52,0.00016984,2]
[351998617,1738872646542,-571.87,0.00016984,2]
[351998619,1738872646553,-500.0,0.00016984,2]
[351998621,1738872646567,-1196.2,0.00016984,2]
[351998624,1738872646578,-500.0,0.00016984,2]
[351998625,1738872646588,-961.06,0.00016984,2]
[351998628,1738872646599,-502.92,0.00016984,2]
[351998630,1738872646610,-500.0,0.00016984,2]
[351998632,1738872646620,-500.0,0.00016984,2]
[351998634,1738872646630,-744.02,0.00016984,2]
[351998636,1738872646641,-500.0,0.00016984,2]
[351998638,1738872646651,-500.0,0.00016984,2]
[351998640,1738872646662,-512.55,0.00016984,2]
[351998642,1738872646673,-594.95,0.00016984,2]
[351998644,1738872646683,-873.48,0.00016984,2]
[351998646,1738872646695,-500.0,0.00016984,2]
[351998648,1738872646705,-1529.26,0.00016984,2]
[351998650,1738872646718,-500.0,0.00016984,2]
[351998652,1738872646729,-500.0,0.00016984,2]
[351998654,1738872646741,-844.71,0.00016984,2]
[351998656,1738872646751,-500.0,0.00016984,2]
[351998659,1738872646761,-389.72242193,0.00016984,2]
[351998661,1738872646774,-179.65757807,0.00016984,2]
[351998663,1738872646783,-200.0,0.00016985,2]
[351998665,1738872646793,-1816.08233,0.00016985,2]
[351998667,1738872646803,-2306.81833242,0.00017,2]
[351998670,1738872646824,-500.0,0.0001671,2]
[351998672,1738872646834,-660.0,0.00017,2]
[351999432,1738872729392,219.0,0.00013,30]
[351999437,1738873622184,614754.01825613,9.37e-05,2]
[351999438,1738873622207,161148.85650994,9.37e-05,2]
[351999447,1738873678340,491522.17109674,0.0001,2]
[351999458,1738873832386,-154.27,0.00010137,2]
[351999459,1738873832395,-601.15770005,0.00011452,2]
[351999460,1738873832676,-457.84229995,0.00011452,2]
[351999461,1738873832686,-1059.0,0.00012054,2]
[351999462,1738873832695,-1059.0,0.00012689,2]
[351999463,1738873832705,-872.18,0.0001319,2]
[351999464,1738873832714,-1059.0,0.00013357,2]
[351999465,1738873832723,-396.68,0.00013699,2]
[351999466,1738873832733,-1059.0,0.00014059,2]
[351999468,1738873832742,-1059.0,0.00014762,2]
[351999470,1738873832751,-218.74,0.00014846,2]
[351999472,1738873832760,-300.0,0.00015106,2]
[351999473,1738873832770,-3919.32195551,0.00015107,2]
[351999474,1738873832781,-3049.99998966,0.00015107,2]
[351999475,1738873832793,-2161.39843761,0.00015107,2]
[351999478,1738873832804,-2329.31961722,0.00015107,2]
[351999479,1738873832814,-1000.0,0.00015107,2]
[351999481,1738873832822,-376.43,0.00015107,2]
[351999482,1738873832830,-382.48,0.00015107,2]
[351999483,1738873832838,-378.59,0.00015107,2]
[351999484,1738873832845,-1500.0,0.00015132,2]
[351999486,1738873832854,-519.77,0.00015329,2]
[351999488,1738873832863,-872.18,0.00015453,2]
[351999490,1738873832871,-1059.0,0.00015501,2]
[351999492,1738873832880,-172.89,0.00015561,2]
[351999494,1738873832890,-369.42,0.00015568,2]
[351999495,1738873832899,-376.62,0.00015572,2]
[351999497,1738873832908,-306.50038278,0.00015577,2]
[351999499,1738873832920,-65.57961722,0.00015577,2]
[351999501,1738873832934,-2525.0,0.000156,2]
[351999503,1738873832943,-373.52,0.00015756,2]
[351999505,1738873832952,-379.62,0.00015845,2]
[351999507,1738873832963,-150.0,0.00015848,2]
[351999508,1738873832972,-379.58,0.00015973,2]
[351999509,1738873832981,-255.0,0.00015973,2]
[351999510,1738873832991,-382.34,0.00016022,2]
[351999511,1738873833000,-194.25,0.00016043,2]
[351999512,1738873833011,-152.96,0.00016061,2]
[351999513,1738873833021,-151.73,0.00016061,2]
[351999514,1738873833030,-151.84,0.00016061,2]
[351999515,1738873833039,-382.26,0.00016079,2]
[351999516,1738873833048,-374.83,0.00016098,2]
[351999517,1738873833058,-379.04,0.00016126,2]
[351999518,1738873833067,-381.9,0.00016168,2]
[351999519,1738873833077,-379.49,0.00016233,2]
[351999520,1738873833086,-371.51,0.00016233,2]
[351999521,1738873833096,-377.74,0.00016233,2]
[351999522,1738873833105,-377.94,0.00016233,2]
[351999523,1738873833115,-367.7,0.00016233,2]
[351999524,1738873833125,-367.72,0.00016233,2]
[351999525,1738873833134,-375.16,0.00016233,2]
[351999526,1738873833145,-371.31,0.00016233,2]
[351999527,1738873833155,-372.43,0.00016233,2]
[351999528,1738873833165,-370.59,0.00016233,2]
[351999529,1738873833174,-371.75,0.00016233,2]
[351999530,1738873833184,-1059.0,0.00016276,2]
[351999531,1738873833193,-984.89,0.00016393,2]
[351999532,1738873833203,-150.0,0.00016438,2]
[351999533,1738873833213,-152.07,0.00016473,2]
[351999534,1738873833224,-224995.48054273,0.0001648,2]
[351999535,1738873833269,-24211.13788183,0.0001648,2]
[351999536,1738873833281,-5617.2100191,0.0001648,2]
[351999537,1738873833293,-1300.0,0.0001648,2]
[351999541,1738873838309,-250.0,0.00013394,2]
[351999542,1738873838319,-20282.31199999,0.0001648,2]
[351999543,1738873838368,-12114.5137489,0.0001648,2]
[351999544,1738873838378,-420.0,0.00016531,2]
[351999545,1738873838387,-150.76,0.00016543,2]
[351999546,1738873838396,-150.16,0.00016543,2]
[351999547,1738873838405,-151.83,0.00016543,2]
[351999548,1738873838414,-379.72,0.00016573,2]
[351999549,1738873838423,-372.43,0.00016573,2]
[351999550,1738873838433,-500.0,0.00016573,2]
[351999551,1738873838445,-500.0,0.00016573,2]
[351999552,1738873838454,-436.07576067,0.00016573,2]
[351999553,1738873838464,-500.0,0.00016573,2]
[351999554,1738873838475,-500.0,0.00016573,2]
[351999555,1738873838486,-500.0,0.00016573,2]
[351999556,1738873838496,-500.0,0.00016573,2]
[351999557,1738873838506,-500.0,0.00016573,2]
[351999558,1738873838516,-500.0,0.00016573,2]
[351999559,1738873838526,-500.0,0.00016573,2]
[351999560,1738873838535,-500.0,0.00016573,2]
[351999561,1738873838545,-500.0,0.00016573,2]
[351999562,1738873838555,-500.0,0.00016573,2]
[351999563,1738873838564,-500.0,0.00016573,2]
[351999564,1738873838573,-500.0,0.00016573,2]
[351999565,1738873838583,-500.0,0.00016573,2]
[351999566,1738873838593,-500.0,0.00016573,2]
[351999567,1738873838603,-500.0,0.00016573,2]
[351999568,1738873838612,-500.0,0.00016573,2]
[351999569,1738873838622,-500.0,0.00016573,2]
[351999570,1738873838632,-500.0,0.00016573,2]
[351999571,1738873838641,-500.0,0.00016573,2]
[351999572,1738873838651,-500.0,0.00016573,2]
[351999573,1738873838661,-500.0,0.00016573,2]
[351999575,1738873838670,-549.37,0.00016573,2]
[351999577,1738873838679,-500.0,0.00016573,2]
[351999579,1738873838690,-500.0,0.00016573,2]
[351999581,1738873838699,-500.0,0.00016573,2]
[351999583,1738873838709,-500.0,0.00016573,2]
[351999585,1738873838718,-500.0,0.00016573,2]
[351999587,1738873838727,-500.0,0.00016573,2]
[351999589,1738873838737,-500.0,0.00016573,2]
[351999591,1738873838746,-500.0,0.00016573,2]
[351999593,1738873838756,-500.0,0.00016573,2]
[351999595,1738873838766,-500.0,0.00016573,2]
[351999597,1738873838775,-500.0,0.00016573,2]
[351999599,1738873838785,-500.0,0.00016573,2]
[351999601,1738873838794,-500.0,0.00016573,2]
[351999603,1738873838804,-500.0,0.00016573,2]
[351999605,1738873838813,-500.0,0.00016573,2]
[351999607,1738873838823,-500.0,0.00016573,2]
[351999609,1738873838833,-500.0,0.00016573,2]
[351999611,1738873838842,-500.0,0.00016573,2]
[351999613,1738873838851,-500.0,0.00016573,2]
[351999615,1738873838860,-437.67298186,0.00016573,2]
[351999617,1738873838869,-500.0,0.00016573,2]
[351999619,1738873838879,-500.0,0.00016573,2]
[351999621,1738873838889,-500.0,0.00016573,2]
[351999623,1738873838899,-515.76,0.00016658,30]
[351999624,1738873838908,-1000.0,0.000167,2]
[351999625,1738873838918,-400.0,0.000167,6]
[351999626,1738873838928,-500.0,0.0001671,2]
[351999627,1738873838941,-500.0,0.0001671,2]
[351999628,1738873838951,-500.0,0.0001671,2]
[351999629,1738873838960,-500.0,0.0001671,2]
[351999630,1738873838969,-505.27,0.0001671,2]
[351999631,1738873838978,-500.0,0.0001671,2]
[351999632,1738873838987,-500.0,0.0001671,2]
[351999633,1738873838995,-500.0,0.0001671,2]
[351999634,1738873839006,-500.0,0.0001671,2]
[351999635,1738873839016,-500.0,0.0001671,2]